Workbook

Sheet Registro
A1: TITULO | B1: ESTUDIO DE IMPACTO AMBIENTAL: PROCEDIMIENTO Y HERRAMIENTAS
A3: AUTORES | B3: ROBERTO PECHE GONZALEZ
B4: DOLORES ENCINAS MALAGON
B5: ZURIÑE GOMEZ DE BALUGERA LOPEZ DE ALDA
B6: MARIA ARRITOKIETA ORTUZAR IRAGORRI
A8: ISBN: | B8: 978-84-613-9696-2

Sheet 154
A1: nº de indicador: | B1: 154 | C1: función de transformación: | D1: CA=-1E-04x2+1 | E1: 0<I<100
A2: Indicador: | B2: % de superficie alterada
A3: fórmula del indicador
A4: unidad del indicador:
A5: rango de valores del indicador: | B5: 0 - 100 | C5: valor del indicador | D5: 50
A6: Tipo de indicador | B6: 2 (T=0,25) | C6: calidad ambiental | D6: =IF(D5<0,"valor del indicador fuera de rango",IF(D5<=100,(-0.0001*D5^2)+1,"valor del indicador fuera rango")) -> 0.750
A7: valor del indicador | B7: calidad ambiental | C7: representación de la función de transformación
A8: 0 | B8: =-0.0001*A8^2+1 -> 1.000
A9: 10 | B9: =-0.0001*A9^2+1 -> 0.990
A10: 20 | B10: 0.960
A11: 30 | B11: 0.910
A12: 40 | B12: 0.840
A13: 45 | B13: 0.798
A14: =A13+5 -> 50 | B14: 0.750
A15: 55 | B15: 0.698
A16: 60 | B16: 0.640
A17: 65 | B17: 0.578
A18: 70 | B18: 0.510
A19: 75 | B19: 0.438
A20: 80 | B20: 0.360
A21: 85 | B21: 0.278
A22: 90 | B22: 0.190
A23: 95 | B23: 0.097
A24: 100 | B24: 0.000

Sheet 155-156
A1: nº de indicador: | B1: 155 | C1: función de transformación: | D1: CA=-1E-04x2+2E-02x | E1: 0<I<100
A2: Indicador: | B2: % de variación de coeficiente de interés de la naturaleza del fondo marino con respecto a las condiciones "sin" proyecto
A3: fórmula del indicador
A4: unidad del indicador:
A5: rango de valores del indicador: | B5: 0 - 100 | C5: valor del indicador | D5: 50
A6: Tipo de indicador | B6: 2 (T=0,25) | C6: calidad ambiental | D6: =IF(D5<0,"valor del indicador fuera de rango",IF(D5<=100,(-0.0001*D5^2)+0.02*D5,"valor del indicador fuera rango")) -> 0.750
A7: valor del indicador | B7: calidad ambiental | C7: representación de la función de transformación
A8: 0 | B8: =-0.0001*A8^2+0.02*A8 -> 0.000
A9: 3 | B9: =-0.0001*A9^2+0.02*A9 -> 0.059
A10: 6 | B10: 0.116
A11: 10 | B11: 0.190
A12: 13 | B12: 0.243
A13: 16 | B13: 0.294
A14: 20 | B14: 0.360
A15: =A14+5 -> 25 | B15: 0.438
A16: 30 | B16: 0.510
A17: 35 | B17: 0.578
A18: 40 | B18: 0.640
A19: 45 | B19: 0.698
A20: 50 | B20: 0.750
A21: 55 | B21: 0.798
A22: 60 | B22: 0.840
A23: 65 | B23: 0.878
A24: 70 | B24: 0.910
A25: 75 | B25: 0.938
A26: 80 | B26: 0.960
A27: 85 | B27: 0.978
A28: 90 | B28: 0.990
A29: 95 | B29: 0.998
A30: 100 | B30: 1.000
A33: nº de indicador: | B33: 156 | C33: función de transformación: | D33: CA=6,67E-03I | E33: 0<I<75
A34: Indicador: | B34: % de variación de coeficiente de interés de la naturaleza del fondo marino con respecto a las condiciones naturales | D34: CA=(4E-04*I2) -(5E-02*I) +2 | E34: 75<I<100
A35: fórmula del indicador
A36: unidad del indicador:
A37: rango de valores del indicador: | B37: 0 - 100 | C37: valor del indicador | D37: 80
A38: Tipo de indicador | B38: 2 (T=0,25) | C38: calidad ambiental | D38: =IF(D37<0,"valor del indicador fuera de rango",IF(D37<=75,0.00667*D37,IF(D37<=100,(0.0004*(D37^2))-(0.05*D37)+2,"valor del indicador fuera rango"))) -> 0.560
A39: valor del indicador | B39: calidad ambiental | C39: representación de la función de transformación
A40: 0 | B40: =0.00667*A40 -> 0.000
A41: =A40+5 -> 5 | B41: 0.033
A42: 10 | B42: 0.067
A43: 15 | B43: 0.100
A44: 20 | B44: 0.133
A45: 25 | B45: 0.167
A46: 30 | B46: 0.200
A47: 35 | B47: 0.233
A48: 40 | B48: 0.267
A49: 45 | B49: 0.300
A50: 50 | B50: 0.334
A51: 55 | B51: 0.367
A52: 60 | B52: 0.400
A53: 65 | B53: 0.434
A54: 70 | B54: 0.467
A55: 75 | B55: =0.00667*A55 -> 0.500
A56: 80 | B56: =(0.0004*A56^2)-(0.05*A56)+2 -> 0.560
A57: =A56+5 -> 85 | B57: =(0.0004*A57^2)-(0.05*A57)+2 -> 0.640
A58: =A57+5 -> 90 | B58: =(0.0004*A58^2)-(0.05*A58)+2 -> 0.740
A59: 95 | B59: =(0.0004*A59^2)-(0.05*A59)+2 -> 0.860
A60: 100 | B60: =(0.0004*A60^2)-(0.05*A60)+2 -> 1.000

Sheet 157-159
A1: nº de indicador: | B1: 157 | C1: función de transformación: | D1: CA=-2E-01*I+1 | E1: 0<I<5
A2: Indicador: | B2: Indicador de disminución de corriente (corrientes fuertes y muy fuertes).
A3: fórmula del indicador
A4: unidad del indicador:
A5: rango de valores del indicador: | B5: 0 - 5 | C5: valor del indicador | D5: 4
A6: Tipo de indicador | B6: 3 (T=0,50) | C6: calidad ambiental | D6: =IF(D5<0,"valor del indicador fuera de rango",IF(D5<=5,(-0.2*D5)+1,"valor del indicador fuera rango")) -> 0.200
A7: valor del indicador | B7: calidad ambiental | C7: representación de la función de transformación
A8: 0.00 | B8: =-0.2*A8+1 -> 1.000
A9: =A8+0.2 -> 0.20 | B9: 0.960
A10: =A9+0.2 -> 0.40 | B10: 0.920
A11: 0.60 | B11: 0.880
A12: 0.80 | B12: 0.840
A13: 1.00 | B13: 0.800
A14: 1.20 | B14: 0.760
A15: 1.40 | B15: 0.720
A16: 1.60 | B16: 0.680
A17: 1.80 | B17: 0.640
A18: 2.00 | B18: 0.600
A19: 2.20 | B19: 0.560
A20: 2.40 | B20: 0.520
A21: 2.60 | B21: 0.480
A22: 2.80 | B22: 0.440
A23: 3.00 | B23: 0.400
A24: 3.20 | B24: 0.360
A25: 3.40 | B25: 0.320
A26: 3.60 | B26: 0.280
A27: 3.80 | B27: 0.240
A28: 4.00 | B28: 0.200
A29: 4.20 | B29: 0.160
A30: 4.40 | B30: 0.120
A31: 4.60 | B31: 0.080
A32: 5.00 | B32: 0.000
A35: nº de indicador: | B35: 158 | C35: función de transformación: | D35: CA=-3,33E-01*I+1 | E35: 0<I<3
A36: Indicador: | B36: Indicador de disminución de corriente (corrientes medias) | D36: CA=0 | E36: 3<I<5
A37: fórmula del indicador
A38: unidad del indicador:
A39: rango de valores del indicador: | B39: 0 - 5 | C39: valor del indicador | D39: 4
A40: Tipo de indicador | B40: 3 (T=0,50) | C40: calidad ambiental | D40: =IF(D39<0,"valor del indicador fuera de rango",IF(D39<=3,(-0.333*D39)+1,IF(D39<=5,0,"valor del indicador fuera rango"))) -> 0.000
A41: valor del indicador | B41: calidad ambiental | C41: representación de la función de transformación
A42: 0.00 | B42: =-0.333*A42+1 -> 1.000
A43: =A42+0.2 -> 0.20 | B43: 0.933
A44: =A43+0.2 -> 0.40 | B44: 0.867
A45: 0.60 | B45: 0.800
A46: 0.80 | B46: 0.734
A47: 1.00 | B47: 0.667
A48: 1.20 | B48: 0.600
A49: 1.40 | B49: 0.534
A50: 1.60 | B50: 0.467
A51: 1.80 | B51: 0.401
A52: 2.00 | B52: 0.334
A53: 2.20 | B53: 0.267
A54: 2.40 | B54: 0.201
A55: 2.60 | B55: 0.134
A56: 2.80 | B56: 0.068
A57: 3.00 | B57: 0.001
A58: 3.20 | B58: =0 -> 0.000
A59: 3.40 | B59: =0 -> 0.000
A60: 3.60 | B60: =0 -> 0.000
A61: 3.80 | B61: =0 -> 0.000
A62: 4.00 | B62: =0 -> 0.000
A63: 4.20 | B63: =0 -> 0.000
A64: 4.50 | B64: =0 -> 0.000
A65: 5.00 | B65: =0 -> 0.000
A68: nº de indicador: | B68: 159 | C68: función de transformación: | D68: CA=-I+1 | E68: 0<I<1
A69: Indicador: | B69: Indicador de disminución de corriente (corrientes debiles y muy débiles) | D69: CA=0 | E69: 1<I<5
A70: fórmula del indicador
A71: unidad del indicador:
A72: rango de valores del indicador: | B72: 0 - 5 | C72: valor del indicador | D72: 2
A73: Tipo de indicador | B73: 3 (T=0,50) | C73: calidad ambiental | D73: =IF(D72<0,"valor del indicador fuera de rango",IF(D72<=1,(-D72)+1,IF(D72<=5,0,"valor del indicador fuera rango"))) -> 0.000
A74: valor del indicador | B74: calidad ambiental | C74: representación de la función de transformación
A75: 0.00 | B75: =-A75+1 -> 1.000
A76: =A75+0.2 -> 0.20 | B76: =-A76+1 -> 0.800
A77: =A76+0.2 -> 0.40 | B77: =-A77+1 -> 0.600
A78: 0.60 | B78: =-A78+1 -> 0.400
A79: 0.80 | B79: =-A79+1 -> 0.200
A80: 1.00 | B80: =0 -> 0.000
A81: 1.20 | B81: =0 -> 0.000
A82: 1.40 | B82: =0 -> 0.000
A83: 1.60 | B83: =0 -> 0.000
A84: 1.80 | B84: =0 -> 0.000
A85: 2.00 | B85: =0 -> 0.000
A86: 2.20 | B86: =0 -> 0.000
A87: 2.40 | B87: =0 -> 0.000
A88: 2.60 | B88: =0 -> 0.000
A89: 2.80 | B89: =0 -> 0.000
A90: 3.00 | B90: =0 -> 0.000
A91: 3.20 | B91: =0 -> 0.000
A92: 3.40 | B92: =0 -> 0.000
A93: 3.60 | B93: =0 -> 0.000
A94: 3.80 | B94: =0 -> 0.000
A95: 4.00 | B95: =0 -> 0.000
A96: 4.20 | B96: =0 -> 0.000
A97: 4.50 | B97: =0 -> 0.000
A98: 5.00 | B98: =0 -> 0.000

Sheet 160
A1: nº de indicador: | B1: 160 | C1: función de transformación: | D1: CA=(5E-01*I2)+(2*I)+2 | E1: (-2)<I<-1
A2: Indicador: | B2: tª media en el ámbito de referencia | D2: CA=(-5E-01*I2)+1 | E2: (-1)<I<1
A3: fórmula del indicador | B3: tª media- tª media"sin proyecto" | D3: CA=(5E-01*I2)-(2*I)+2 | E3: 1<I<2
A4: unidad del indicador: | B4: ºC
A5: rango de valores del indicador: | B5: -2 - 2 | C5: valor del indicador | D5: 1.6
A6: Tipo de indicador | B6: 2 (T=0,25) | C6: calidad ambiental | D6: =IF(D5<-2,"valor del indicador fuera de rango",IF(D5<=-1,0.5*D5^2+2*D5+2,IF(D5<=1,-0.5*D5^2+1,IF(D5<=2,0.5*D5^2-2*D5+2,"valor del indicador fuera rango")))) -> 0.080
A7: valor del indicador | B7: calidad ambiental | C7: representación de la función de transformación
A8: -2.0 | B8: =(0.5*A8^2)+(2*A8)+2 -> 0.000
A9: -1.8 | B9: 0.020
A10: -1.6 | B10: 0.080
A11: -1.4 | B11: 0.180
A12: -1.2 | B12: 0.320
A13: -1.0 | B13: 0.500
A14: -0.8 | B14: =(-0.5*A14^2)+1 -> 0.680
A15: -0.6 | B15: =(-0.5*A15^2)+1 -> 0.820
A16: -0.2 | B16: =(-0.5*A16^2)+1 -> 0.980
A17: 0.0 | B17: 1.000
A18: 0.2 | B18: 0.980
A19: 0.4 | B19: 0.920
A20: 0.6 | B20: 0.820
A21: 1.0 | B21: 0.500
A22: 1.2 | B22: =(0.5*A22^2)-(2*A22)+2 -> 0.320
A23: 1.4 | B23: =(0.5*A23^2)-(2*A23)+2 -> 0.180
A24: 1.8 | B24: =(0.5*A24^2)-(2*A24)+2 -> 0.020
A25: 2.0 | B25: =(0.5*A25^2)-(2*A25)+2 -> 0.000

Sheet 161-163
A1: nº de indicador: | B1: 161 | C1: función de transformación: | D1: y=-6,67E-03x2+1,67E-01x | E1: 0<x<10
A2: Indicador: | B2: Profundidad del disco de Secci (bahías abiertas) | D2: y=1 | E2: 10<x<20
A3: fórmula del indicador
A4: unidad del indicador: | B4: m
A5: rango de valores del indicador: | B5: 0 - 20 | C5: valor del indicador | D5: 12
A6: Tipo de indicador | B6: 2 (T=0,25) | C6: calidad ambiental | D6: =IF(D5<0,"valor del indicador fuera de rango",IF(D5<=9,-0.00667*(D5^2)+(0.167*D5),IF(D5<=20,1,"valor del indicador fuera rango"))) -> 1.000
A7: valor del indicador | B7: calidad ambiental | C7: representación de la función de transformación
A8: 0 | B8: =-0.00667*(A8^2)+(0.167*A8) -> 0.000
A9: =A8+1 -> 1 | B9: 0.160
A10: =A9+1 -> 2 | B10: 0.307
A11: 3 | B11: 0.441
A12: 4 | B12: 0.561
A13: 5 | B13: 0.668
A14: 6 | B14: 0.762
A15: 7 | B15: 0.842
A16: 8 | B16: 0.909
A17: 9 | B17: 0.963
A18: 10 | B18: =1 -> 1.000
A19: 11 | B19: =1 -> 1.000
A20: 12 | B20: =1 -> 1.000
A21: 13 | B21: =1 -> 1.000
A22: 14 | B22: =1 -> 1.000
A23: 15 | B23: =1 -> 1.000
A24: 16 | B24: =1 -> 1.000
A25: 17 | B25: =1 -> 1.000
A26: 18 | B26: =1 -> 1.000
A27: 19 | B27: =1 -> 1.000
A28: 20 | B28: =1 -> 1.000
A31: nº de indicador: | B31: 162 | C31: función de transformación: | D31: y=-6,67E-03x2+1,67E-01x | E31: 0<x<10
A32: Indicador: | B32: Profundidad del disco de Secci (bahías cerradas) | D32: y=1 | E32: 10<x<20
A33: fórmula del indicador
A34: unidad del indicador: | B34: m
A35: rango de valores del indicador: | B35: 0 - 20 | C35: valor del indicador | D35: 12
A36: Tipo de indicador | B36: 2 (T=0,25) | C36: calidad ambiental | D36: =IF(D35<0,"valor del indicador fuera de rango",IF(D35<=9,-0.00667*(D35^2)+(0.167*D35),IF(D35<=20,1,"valor del indicador fuera rango"))) -> 1.000
A37: valor del indicador | B37: calidad ambiental | C37: representación de la función de transformación
A38: 0 | B38: =0.01*(A38^2) -> 0.000
A39: =A38+1 -> 1 | B39: 0.010
A40: =A39+1 -> 2 | B40: 0.040
A41: 3 | B41: 0.090
A42: 4 | B42: 0.160
A43: 5 | B43: 0.250
A44: 6 | B44: 0.360
A45: 7 | B45: 0.490
A46: 8 | B46: 0.640
A47: 9 | B47: 0.810
A48: 10 | B48: =1 -> 1.000
A49: 11 | B49: =1 -> 1.000
A50: 12 | B50: =1 -> 1.000
A51: 13 | B51: =1 -> 1.000
A52: 14 | B52: =1 -> 1.000
A53: 15 | B53: =1 -> 1.000
A54: 16 | B54: =1 -> 1.000
A55: 17 | B55: =1 -> 1.000
A56: 18 | B56: =1 -> 1.000
A57: 19 | B57: =1 -> 1.000
A58: 20 | B58: =1 -> 1.000
A61: nº de indicador: | B61: 163 | C61: función de transformación: | D61: CA=1,38E-04I2-1,89E-02I+1 | E61: 0<I<50
A62: Indicador: | B62: Turbidez de las aguas | D62: CA=-4,44E-03I+6,22E-01 | E62: 50<I<140
A63: fórmula del indicador
A64: unidad del indicador: | B64: unidades Jackson
A65: rango de valores del indicador: | B65: 0 - 140 | C65: valor del indicador | D65: 100
A66: Tipo de indicador | B66: 2 (T=0,25) | C66: calidad ambiental | D66: =IF(D65<0,"valor del indicador fuera de rango",IF(D65<=50,0.000138*D65^2-0.0189*D65+1,IF(D65<=140,-0.00444*D65+0.622,"valor del indicador fuera rango"))) -> 0.178
A67: valor del indicador | B67: calidad ambiental | C67: representación de la función de transformación
A68: 0 | B68: =0.000138*A68^2-0.0189*A68+1 -> 1.000
A69: 5 | B69: 0.909
A70: 10 | B70: 0.825
A71: 15 | B71: 0.748
A72: 20 | B72: 0.677
A73: =+A72+10 -> 30 | B73: 0.557
A74: 40 | B74: 0.465
A75: 50 | B75: 0.400
A76: 60 | B76: =-0.00444*A76+0.622 -> 0.356
A77: 70 | B77: 0.311
A78: 80 | B78: 0.267
A79: 90 | B79: 0.222
A80: 100 | B80: 0.178
A81: 110 | B81: 0.134
A82: 120 | B82: 0.089
A83: 130 | B83: 0.045
A84: 135 | B84: 0.023
A85: 140 | B85: 0.000

Sheet 164-165
A1: nº de indicador: | B1: 164 | C1: función de transformación: | D1: y=-2,5E-03x+1 | E1: 0<x<100
A2: Indicador: | B2: Concentración de coliformes fecales | D2: y=-8,33E-04x+8,33E-01 | E2: 100<x<1000
A3: fórmula del indicador
A4: unidad del indicador: | B4: nº / 100ml
A5: rango de valores del indicador: | B5: 0 - 1000 | C5: valor del indicador | D5: 300
A6: Tipo de indicador | B6: 2 (T=0,25) | C6: calidad ambiental | D6: =IF(D5<0,"valor del indicador fuera de rango",IF(D5<=100,-0.0025*(D5)+1,IF(D5<=1000,-0.000833*(D5)+0.833,"valor del indicador fuera rango"))) -> 0.583
A7: valor del indicador | B7: calidad ambiental | C7: representación de la función de transformación
A8: 0 | B8: =-0.0025*(A8)+1 -> 1.000
A9: 20 | B9: =-0.0025*(A9)+1 -> 0.950
A10: 30 | B10: =-0.0025*(A10)+1 -> 0.925
A11: 40 | B11: =-0.0025*(A11)+1 -> 0.900
A12: 50 | B12: 0.875
A13: 60 | B13: 0.850
A14: 80 | B14: 0.800
A15: 90 | B15: 0.775
A16: 100 | B16: 0.750
A17: 200 | B17: =-0.000833*(A17)+0.833 -> 0.666
A18: 400 | B18: 0.500
A19: 600 | B19: 0.333
A20: 700 | B20: 0.250
A21: 800 | B21: 0.167
A22: 900 | B22: 0.083
A23: 1000 | B23: 0.000
A26: nº de indicador: | B26: 165 | C26: función de transformación: | D26: y=1.25E-03x2-1,5E-01x+4,5 | E26: 60<x<80
A27: Indicador: | B27: % de saturación de oxígeno disuelto | D27: y=-1,25E-03x2+2,5E-01x-1,15E01 | E27: 80<x<100
A28: fórmula del indicador
A29: unidad del indicador: | B29: %
A30: rango de valores del indicador: | B30: 60 - 100 | C30: valor del indicador | D30: 84
A31: Tipo de indicador | B31: 2 (T=0,25) | C31: calidad ambiental | D31: =IF(D30<60,"valor del indicador fuera de rango",IF(D30<=80,0.00125*(D30^2)-0.15*(D30)+4.5,IF(D30<=100,-0.00125*(D30^2)+0.25*(D30)-11.5,"valor del indicador fuera rango"))) -> 0.680
A32: valor del indicador | B32: calidad ambiental | C32: representación de la función de transformación
A33: 60 | B33: =0.00125*(A33^2)-0.15*A33+4.5 -> 0.000
A34: 63 | B34: =0.00125*(A34^2)-0.15*A34+4.5 -> 0.011
A35: 66 | B35: 0.045
A36: 70 | B36: 0.125
A37: =+A36+2 -> 72 | B37: 0.180
A38: =+A37+2 -> 74 | B38: 0.245
A39: =+A38+2 -> 76 | B39: 0.320
A40: =+A39+2 -> 78 | B40: 0.405
A41: =+A40+2 -> 80 | B41: 0.500
A42: =+A41+3 -> 83 | B42: =-0.00125*(A42^2)+0.25*(A42)-11.5 -> 0.639
A43: 86 | B43: 0.755
A44: 89 | B44: 0.849
A45: 92 | B45: 0.920
A46: 95 | B46: 0.969
A47: 98 | B47: 0.995
A48: 100 | B48: 1.000

Sheet 166-167
A1: nº de indicador: | B1: 166 | C1: función de transformación: | D1: y=-4E-04x+1 | E1: 0<x<500
A2: Indicador: | B2: Coliformes fecales por 100ml de arena | D2: y=-6E-01x+1,1 | E2: 500<x<1500
A3: fórmula del indicador | D3: y=-4E-04x+8E-01 | E3: 1500<x<2000
A4: unidad del indicador: | B4: nº / 100ml
A5: rango de valores del indicador: | B5: 0 - 2000 | C5: valor del indicador | D5: 1800
A6: Tipo de indicador | B6: 2 (T=0,25) | C6: calidad ambiental | D6: =IF(D5<0,"valor del indicador fuera de rango",IF(D5<=500,-0.0004*(D5)+1,IF(D5<=1500,-0.0006*(D5)+1.1,IF(D5<=2000,-0.0004*(D5)+0.8,"valor del indicador fuera rango")))) -> 0.080
A7: valor del indicador | B7: calidad ambiental | C7: representación de la función de transformación
A8: 0 | B8: =-0.0004*(A8)+1 -> 1.000
A9: =+A8+130 -> 130 | B9: =-0.0004*(A9)+1 -> 0.948
A10: =+A9+130 -> 260 | B10: =-0.0004*(A10)+1 -> 0.896
A11: 390 | B11: =-0.0004*(A11)+1 -> 0.844
A12: 520 | B12: =-0.0006*(A12)+1.1 -> 0.788
A13: 650 | B13: 0.710
A14: 780 | B14: 0.632
A15: 910 | B15: 0.554
A16: 1040 | B16: 0.476
A17: 1170 | B17: 0.398
A18: 1300 | B18: 0.320
A19: 1430 | B19: 0.242
A20: 1560 | B20: =-0.0004*A20+0.8 -> 0.176
A21: 1690 | B21: =-0.0004*A21+0.8 -> 0.124
A22: 1820 | B22: =-0.0004*A22+0.8 -> 0.072
A23: 2000 | B23: =-0.0004*A23+0.8 -> 0.000
A26: nº de indicador: | B26: 167 | C26: función de transformación: | D26: y=-2E-02x2+1 | E26: 0<x<5
A27: Indicador: | B27: Residuos sólidos no naturales | D27: y=2E-02x2-4E-01x +2 | E27: 5<x<10
A28: fórmula del indicador | B28: no hay
A29: unidad del indicador: | B29: g m-2
A30: rango de valores del indicador: | B30: 0 - 10 | C30: valor del indicador | D30: 7
A31: Tipo de indicador | B31: 2 (T=0,25) | C31: calidad ambiental | D31: =IF(D30<0,"valor del indicador fuera de rango",IF(D30<=5,-0.02*((D30^2))+1,IF(D30<=10,0.02*((D30^2))-0.4*(D30)+2,"valor del indicador fuera rango"))) -> 0.180
A32: valor del indicador | B32: calidad ambiental | C32: representación de la función de transformación
A33: 0.0 | B33: =-0.02*(A33^2)+1 -> 1.000
A34: 0.5 | B34: 0.995
A35: 1.0 | B35: 0.980
A36: 1.5 | B36: 0.955
A37: 2.0 | B37: 0.920
A38: 2.5 | B38: 0.875
A39: 3.0 | B39: 0.820
A40: 3.5 | B40: 0.755
A41: 4.0 | B41: 0.680
A42: 4.5 | B42: 0.595
A43: 5.0 | B43: =0.02*(A43^2)-0.4*A43+2 -> 0.500
A44: =+A43+1 -> 6.0 | B44: 0.320
A45: =+A44+1 -> 7.0 | B45: 0.180
A46: =+A45+1 -> 8.0 | B46: 0.080
A47: =+A46+1 -> 9.0 | B47: 0.020
A48: =+A47+1 -> 10.0 | B48: 0.000

Sheet 168-171
A1: nº de indicador: | B1: 168 | C1: función de transformación: | D1: y=-5E-01x+1 | E1: 0<x<2
A2: Indicador: | B2: Indicador cualitativo de la calidad perceptible del agua (color, materias flotantes y grasas y aceites) | D2: y=0 | E2: 2<x<6
A3: fórmula del indicador
A4: unidad del indicador:
A5: rango de valores del indicador: | B5: 0 - 6 | C5: valor del indicador | D5: 2.4
A6: Tipo de indicador | B6: 3 (T=0,50) | C6: calidad ambiental | D6: =IF(D5<0,"valor del indicador fuera de rango",IF(D5<=2,-0.5*(D5)+1,IF(D5<=6,0,"valor del indicador fuera rango"))) -> 0.000
A7: valor del indicador | B7: calidad ambiental | C7: representación de la función de transformación
A8: 0.0 | B8: =-0.5*(A8)+1 -> 1.000
A9: 0.3 | B9: 0.850
A10: 0.6 | B10: 0.700
A11: 1.0 | B11: 0.500
A12: 1.3 | B12: 0.350
A13: 1.6 | B13: 0.200
A14: 2.0 | B14: 0.000
A15: 2.1 | B15: =0 -> 0.000
A16: 2.5 | B16: =0 -> 0.000
A17: 3.0 | B17: =0 -> 0.000
A18: 3.3 | B18: =0 -> 0.000
A19: 3.6 | B19: =0 -> 0.000
A20: 3.9 | B20: =0 -> 0.000
A21: 4.2 | B21: =0 -> 0.000
A22: 4.5 | B22: =0 -> 0.000
A23: 4.8 | B23: =0 -> 0.000
A24: 5.1 | B24: =0 -> 0.000
A25: 5.4 | B25: =0 -> 0.000
A26: 5.7 | B26: =0 -> 0.000
A27: 6.0 | B27: =0 -> 0.000
A30: nº de indicador: | B30: 169 | C30: función de transformación: | D30: y=-3,5E-02x2-9,5E-02x+1 | E30: 0<x<3
A31: Indicador: | B31: Indicador cualitativo de la calidad perceptible del agua (sin olor)
A32: fórmula del indicador
A33: unidad del indicador:
A34: rango de valores del indicador: | B34: 0 - 3 | C34: valor del indicador | D34: 0.15
A35: Tipo de indicador | B35: 3 (T=0,50) | C35: calidad ambiental | D35: =IF(D34<0,"valor del indicador fuera de rango",IF(D34<=3,-0.035*(D34^2)-0.095*(D34)+1,)) -> 0.985
A36: valor del indicador | B36: calidad ambiental | C36: representación de la función de transformación
A37: 0.00 | B37: =-0.035*(A37^2)-0.095*(A37)+1 -> 1.000
A38: =+A37+0.15 -> 0.15 | B38: =-0.035*(A38^2)-0.095*(A38)+1 -> 0.985
A39: =+A38+0.15 -> 0.30 | B39: 0.968
A40: 0.45 | B40: 0.950
A41: 0.60 | B41: 0.930
A42: 0.75 | B42: 0.909
A43: 0.90 | B43: 0.886
A44: 1.05 | B44: 0.862
A45: 1.20 | B45: 0.836
A46: 1.35 | B46: 0.808
A47: 1.50 | B47: 0.779
A48: 1.65 | B48: 0.748
A49: 1.80 | B49: 0.716
A50: 1.95 | B50: 0.682
A51: 2.10 | B51: 0.646
A52: 2.25 | B52: 0.609
A53: 2.40 | B53: 0.570
A54: 2.55 | B54: 0.530
A55: 2.70 | B55: 0.488
A56: 3.00 | B56: 0.400
A59: nº de indicador: | B59: 170 | C59: función de transformación: | D59: y=-5E-02x2-5E-02x+0,7 | E59: 0<x<3
A60: Indicador: | B60: Indicador cualitativo de la calidad perceptible del agua (olor imperceptible)
A61: fórmula del indicador
A62: unidad del indicador:
A63: rango de valores del indicador: | B63: 0 - 3 | C63: valor del indicador | D63: 0.15
A64: Tipo de indicador | B64: 3 (T=0,50) | C64: calidad ambiental | D64: =IF(D63<0,"valor del indicador fuera de rango",IF(D63<=3,-0.05*(D63^2)-0.05*(D63)+0.7,"valor del indicador fuera de rango")) -> 0.691
A65: valor del indicador | B65: calidad ambiental | C65: representación de la función de transformación
A66: 0.0 | B66: =-0.05*(A66^2)-0.05*(A66)+0.7 -> 0.700
A67: =+A66+0.15 -> 0.2 | B67: 0.691
A68: =+A67+0.15 -> 0.3 | B68: 0.681
A69: 0.5 | B69: 0.667
A70: 0.6 | B70: 0.652
A71: 0.8 | B71: 0.634
A72: 0.9 | B72: 0.615
A73: 1.1 | B73: 0.592
A74: 1.2 | B74: 0.568
A75: 1.4 | B75: 0.541
A76: 1.5 | B76: 0.513
A77: 1.7 | B77: 0.481
A78: 1.8 | B78: 0.448
A79: 2.0 | B79: 0.412
A80: 2.1 | B80: 0.375
A81: 2.3 | B81: 0.334
A82: 2.4 | B82: 0.292
A83: 2.6 | B83: 0.247
A84: 2.7 | B84: 0.201
A85: 3.0 | B85: 0.100
A88: nº de indicador: | B88: 171 | C88: función de transformación: | D88: y=-2,5E-02x2-2,5E-02x+3E-01 | E88: 0<x<3
A89: Indicador: | B89: Indicador cualitativo de la calidad perceptible del agua (olor notorio)
A90: fórmula del indicador
A91: unidad del indicador:
A92: rango de valores del indicador: | B92: 0 - 3 | C92: valor del indicador | D92: 2
A93: Tipo de indicador | B93: 3 (T=0,50) | C93: calidad ambiental | D93: =IF(D92<0,"valor del indicador fuera de rango",IF(D92<=3,-0.025*(D92^2)-0.025*(D92)+0.3,"valor del indicador fuera de rango")) -> 0.150
A94: valor del indicador | B94: calidad ambiental | C94: representación de la función de transformación
A95: 0.0 | B95: =-0.025*(A95^2)-0.025*(A95)+0.3 -> 0.300
A96: =+A95+0.15 -> 0.2 | B96: 0.296
A97: =+A96+0.15 -> 0.3 | B97: 0.290
A98: 0.5 | B98: 0.284
A99: 0.6 | B99: 0.276
A100: 0.8 | B100: 0.267
A101: 0.9 | B101: 0.257
A102: 1.1 | B102: 0.246
A103: 1.2 | B103: 0.234
A104: 1.4 | B104: 0.221
A105: 1.5 | B105: 0.206
A106: 1.7 | B106: 0.191
A107: 1.8 | B107: 0.174
A108: 2.0 | B108: 0.156
A109: 2.1 | B109: 0.137
A110: 2.3 | B110: 0.117
A111: 2.4 | B111: 0.096
A112: 2.6 | B112: 0.074
A113: 2.7 | B113: 0.050
A114: 3.0 | B114: 0.000
